fUSD/lending_fUSD_20260324
["ID","MTS","AMOUNT","RATE_DAILY","PERIOD"]
[408862283,1774343683066,-500.0,0.00046301,120]
[408862284,1774343683113,-500.0,0.00046301,120]
[408862285,1774343683156,-227.01285081,0.00046301,120]
[408862286,1774343683200,-500.0,0.00046301,120]
[408862287,1774343683244,-500.0,0.00046301,60]
[408862288,1774343683293,-972.96,0.00046301,120]
[408862289,1774343683335,-500.0,0.00046301,120]
[408862290,1774343683382,-567.13,0.00046301,120]
[408862291,1774343683424,-500.0,0.00046301,120]
[408862292,1774343683467,-1765.46,0.00046301,120]
[408862293,1774343683507,-500.0,0.00046301,120]
[408862294,1774343683549,-500.0,0.00046301,120]
[408862295,1774343683589,-500.0,0.00046301,120]
[408862296,1774343683631,-657.93,0.00046301,120]
[408862297,1774343683673,-500.0,0.00046301,120]
[408862298,1774343683712,-500.0,0.00046301,120]
[408862299,1774343683751,-500.0,0.00046301,120]
[408862300,1774343683794,-500.0,0.00046301,120]
[408862301,1774343683836,-500.0,0.00046301,120]
[408862302,1774343683876,-1353.82,0.00046301,90]
[408862303,1774343683915,-500.0,0.00046301,120]
[408862304,1774343683957,-184.34416079,0.00046301,120]
[408862305,1774343684004,-577.26,0.00046301,120]
[408862306,1774343684043,-500.0,0.00046301,120]
[408862307,1774343684082,-854.16,0.00046301,120]
[408862308,1774343684120,-403.77225972,0.00046301,120]
[408862309,1774343684161,-622.22,0.00046301,120]
[408862310,1774343684204,-2990.76,0.00046301,120]
[408862311,1774343684244,-500.0,0.00046301,120]
[408862312,1774343684284,-500.0,0.00046301,120]
[408862313,1774343684322,-290.51918299,0.00046301,120]
[408862314,1774343684358,-500.0,0.00046301,120]
[408862315,1774343684397,-374.30372209,0.00046301,120]
[408862316,1774343684442,-1240.59,0.00046301,120]
[408862317,1774343684489,-500.0,0.00046301,120]
[408862318,1774343684534,-500.0,0.00046301,120]
[408862319,1774343684581,-950.15,0.00046301,120]
[408862320,1774343684628,-500.0,0.00046301,120]
[408862321,1774343684670,-187.86644402,0.00046301,120]
[408862322,1774343684710,-899.71,0.00046301,120]
[408862323,1774343684749,-500.0,0.00046301,120]
[408862324,1774343684791,-500.0,0.00046301,120]
[408862325,1774343684833,-1801.6,0.00046301,120]
[408862326,1774343684873,-500.0,0.00046301,120]
[408862327,1774343684913,-500.0,0.00046301,120]
[408862328,1774343684956,-500.0,0.00046301,120]
[408862329,1774343685004,-500.0,0.00046301,120]
[408862330,1774343685050,-500.0,0.00046301,120]
[408862331,1774343685096,-500.0,0.00046301,120]
[408862332,1774343685142,-500.0,0.00046301,120]
[408862333,1774343685187,-594.54,0.00046301,120]
[408862334,1774343685230,-1151.07,0.00046301,120]
[408862335,1774343685272,-500.0,0.00046301,120]
[408862336,1774343685311,-500.0,0.00046301,120]
[408862337,1774343685715,-418.92960835,0.00046301,120]
[408862338,1774343685764,-1738.86,0.00046301,120]
[408862339,1774343685814,-500.0,0.00046301,120]
[408862340,1774343685858,-631.18827462,0.00046301,120]
[408862341,1774343685901,-416.17586175,0.00046301,120]
[408862342,1774343685947,-693.75,0.00046301,120]
[408862343,1774343685993,-743.4,0.00046301,120]
[408862344,1774343686037,-1352.88,0.00046301,120]
[408862345,1774343686079,-6207.8,0.00046301,120]
[408862346,1774343686123,-500.0,0.00046301,120]
[408862347,1774343686167,-500.0,0.00046301,120]
[408862348,1774343686213,-504.31,0.00046301,120]
[408862349,1774343686264,-542.07,0.00046301,120]
[408862350,1774343686308,-500.0,0.00046301,120]
[408862351,1774343686354,-2152.6,0.00046301,120]
[408862352,1774343686398,-500.0,0.00046301,60]
[408862353,1774343686442,-500.0,0.00046301,120]
[408862354,1774343686487,-569.71,0.00046301,120]
[408862355,1774343686530,-500.0,0.00046301,120]
[408862356,1774343686574,-500.0,0.00046301,120]
[408862357,1774343686622,-604.99,0.00046301,120]
[408862358,1774343686664,-500.0,0.00046301,120]
[408862359,1774343686704,-500.0,0.00046301,120]
[408862360,1774343686744,-623.34,0.00046301,120]
[408862361,1774343686785,-500.0,0.00046301,120]
[408862362,1774343686827,-500.0,0.00046301,120]
[408862363,1774343686871,-500.0,0.00046301,120]
[408862364,1774343686913,-500.0,0.00046301,120]
[408862365,1774343686959,-500.0,0.00046301,120]
[408862366,1774343687000,-602.04,0.00046301,120]
[408862367,1774343687042,-500.0,0.00046301,120]
[408862368,1774343687085,-730.05,0.00046301,120]
[408862369,1774343687133,-1212.73,0.00046301,120]
[408862370,1774343687181,-1091.4,0.00046301,60]
[408862371,1774343687229,-500.0,0.00046301,120]
[408862372,1774343687277,-500.0,0.00046301,120]
[408862373,1774343687324,-500.0,0.00046301,120]
[408862374,1774343687375,-618.3,0.00046301,120]
[408862375,1774343687420,-574.75,0.00046301,120]
[408862376,1774343687468,-394.21572979,0.00046301,120]
[408862377,1774343687520,-500.0,0.00046301,120]
[408862378,1774343687566,-500.0,0.00046301,120]
[408862379,1774343687611,-2177.36,0.00046301,120]
[408862380,1774343687651,-500.0,0.00046301,120]
[408862381,1774343687691,-500.0,0.00046301,120]
[408862382,1774343687733,-500.0,0.00046301,120]
[408862383,1774343687774,-500.0,0.00046301,120]
[408862384,1774343687815,-583.79,0.00046301,120]
[408862385,1774343687855,-565.07,0.00046301,120]
[408862386,1774343687897,-500.0,0.00046301,120]
[408862387,1774343687941,-1834.25,0.00046301,120]
[408862388,1774343687985,-500.0,0.00046301,120]
[408862389,1774343688030,-508.82,0.00046301,120]
[408862390,1774343688074,-500.0,0.00046301,120]
[408862391,1774343688116,-1021.78,0.00046301,120]
[408862392,1774343688160,-500.0,0.00046301,120]
[408862393,1774343688207,-500.0,0.00046301,120]
[408862394,1774343688252,-500.0,0.00046301,120]
[408862395,1774343688298,-800.99,0.00046301,120]
[408862396,1774343688342,-500.0,0.00046301,120]
[408862397,1774343688384,-509.38,0.00046301,120]
[408862398,1774343688427,-500.0,0.00046301,120]
[408862399,1774343688470,-576.51,0.00046301,120]
[408862400,1774343688516,-962.78,0.00046301,120]
[408862401,1774343688560,-972.01,0.00046301,120]
[408862402,1774343688602,-837.97,0.00046301,120]
[408862403,1774343688644,-837.64,0.00046301,120]
[408862404,1774343688761,-533.04640595,0.00046301,120]
[408862405,1774343688806,-500.0,0.00046301,120]
[408862406,1774343688848,-500.0,0.00046301,120]
[408862407,1774343688891,-500.0,0.00046301,120]
[408862408,1774343688934,-500.0,0.00046301,120]
[408862409,1774343688976,-500.0,0.00046301,120]
[408862410,1774343689018,-500.0,0.00046301,120]
[408862411,1774343689060,-1066.06,0.00046301,120]
[408862412,1774343689103,-500.0,0.00046301,120]
[408862413,1774343689142,-500.0,0.00046301,120]
[408862414,1774343689187,-633.99218687,0.00046301,120]
[408862415,1774343689231,-869.54,0.00046301,120]
[408862416,1774343689276,-2702.93,0.00046301,120]
[408862417,1774343689323,-500.0,0.00046301,120]
[408862418,1774343689365,-546.46,0.00046301,120]
[408862419,1774343689408,-500.0,0.00046301,120]
[408862420,1774343689451,-1138.07,0.00046301,120]
[408862421,1774343689494,-500.0,0.00046301,120]
[408862422,1774343689537,-500.0,0.00046301,120]
[408862423,1774343689578,-500.0,0.00046301,120]
[408862424,1774343689619,-500.0,0.00046301,120]
[408862425,1774343689661,-3001.86,0.00046301,120]
[408862426,1774343689702,-680.57,0.00046301,120]
[408862427,1774343689741,-500.0,0.00046301,30]
[408862428,1774343689780,-500.0,0.00046301,120]
[408862429,1774343689820,-500.0,0.00046301,120]
[408862430,1774343689858,-434.45064859,0.00046301,120]
[408862431,1774343689898,-643.38,0.00046301,120]
[408862432,1774343689940,-500.0,0.00046301,120]
[408862433,1774343689980,-570.59163397,0.00046301,120]
[408862434,1774343690018,-500.0,0.00046301,120]
[408862435,1774343690057,-843.35,0.00046301,120]
[408862436,1774343690096,-999.0,0.00046328,120]
[408862437,1774343690135,-944.97707325,0.00046328,120]
[408862438,1774343690178,-1021.0,0.0004635,60]
[408862439,1774343690221,-502.21773516,0.00046394,120]
[408862440,1774343690268,-795621.12249166,0.0004646,120]
[408862441,1774343690313,-1000000.0,0.0004646,120]
[408862442,1774343690356,-1000000.0,0.0004646,120]
[408862443,1774343690404,-74618.40788675,0.0004646,120]
[408862960,1774344625269,163.21,6.438e-05,2]
[408862961,1774344625483,163.21,7.511e-05,2]
[408862962,1774344625674,163.21,8.584e-05,2]
[408862963,1774344625869,163.21,9.657e-05,2]
[408862970,1774344631505,-300.0,9.999e-05,2]
[408862971,1774344631515,-391.51268896,9.999e-05,2]
[408862972,1774344631528,-808.48731104,9.999e-05,2]
[408862973,1774344631538,-7212.14224607,0.0001,2]
[408862974,1774344631547,-348.26100294,0.0001,2]
[408862975,1774344631556,-163.21,0.0001073,2]
[408862976,1774344631565,-420.0,0.00010999,2]
[408862977,1774344631575,-1680.0,0.00010999,2]
[408862978,1774344631585,-5000.0,0.00011,2]
[408862979,1774344631594,-163.21,0.00011803,2]
[408862980,1774344631603,-287.0,0.00012099,2]
[408862981,1774344631611,-404.40417475,0.0001287,2]
[408862982,1774344631630,-163.21,0.00012877,2]
[408862983,1774344631640,-2704.89494253,0.00013,15]
[408862984,1774344631650,-1852.42,0.00013141,2]
[408862985,1774344631659,-1500.0,0.00013222,2]
[408862986,1774344631669,-2000.0,0.00013285,2]
[408862988,1774344631678,-200.0,0.000135,4]
[408862990,1774344631687,-256.0,0.000135,2]
[408862992,1774344631697,-400.0,0.000136,4]
[408862994,1774344631706,-636.91,0.00013686,2]
[408862996,1774344631715,-200.0,0.00013699,2]
[408862998,1774344631725,-716.06,0.00013699,2]
[408863000,1774344631734,-700.0,0.000137,5]
[408863002,1774344631743,-900.0,0.000138,5]
[408863004,1774344631752,-150.0,0.000138,2]
[408863005,1774344631762,-290.04630325,0.000138,2]
[408863006,1774344631770,-150.0,0.00013865,2]
[408863007,1774344631779,-6762.1846,0.00013866,2]
[408863008,1774344631788,-5250.60984335,0.00013866,2]
[408863009,1774344631801,-16854.16105665,0.00013866,2]
[408863010,1774344631810,-4972.99929809,0.00013866,2]
[408863011,1774344631821,-2735.01190922,0.00013866,2]
[408863012,1774344631831,-2443.55585403,0.00013866,2]
[408863013,1774344631840,-303.0021349,0.000139,2]
[408863014,1774344631849,-298.61897299,0.000139,2]
[408863015,1774344631858,-294.30069628,0.000139,2]
[408863016,1774344631867,-1100.0,0.000139,5]
[408863017,1774344631877,-605.3197382,0.00013956,2]
[408863018,1774344631886,-500.0,0.00013965,2]
[408863019,1774344631895,-500.0,0.00013965,2]
[408863020,1774344631904,-245.06005529,0.00013965,2]
[408863021,1774344631914,-307.04939293,0.00013965,2]
[408863022,1774344631923,-500.0,0.00013965,2]
[408863023,1774344631932,-518.0382385,0.00013965,2]
[408863024,1774344631942,-193.89943557,0.00013965,2]
[408863025,1774344631951,-500.0,0.00013965,2]
[408863026,1774344631960,-500.0,0.00013965,2]
[408863027,1774344631973,-500.0,0.00013965,2]
[408863028,1774344631983,-500.0,0.00013965,2]
[408863029,1774344631992,-500.0,0.00013965,2]
[408863030,1774344632002,-500.0,0.00013965,2]
[408863031,1774344632012,-500.0,0.00013965,2]
[408863032,1774344632022,-500.0,0.00013965,2]
[408863033,1774344632031,-500.0,0.00013965,2]
[408863034,1774344632041,-500.0,0.00013965,2]
[408863035,1774344632054,-500.0,0.00013965,2]
[408863036,1774344632063,-500.0,0.00013965,2]
[408863037,1774344632073,-500.0,0.00013965,2]
[408863038,1774344632082,-500.0,0.00013965,2]
[408863039,1774344632092,-500.0,0.00013965,2]
[408863040,1774344632102,-500.0,0.00013965,2]
[408863041,1774344632111,-500.0,0.00013965,2]
[408863042,1774344632121,-500.0,0.00013965,2]
[408863043,1774344632131,-500.0,0.00013965,2]
[408863044,1774344632140,-221.93526562,0.00013965,2]
[408863045,1774344632149,-500.0,0.00013965,2]
[408863046,1774344632160,-500.0,0.00013965,2]
[408863047,1774344632174,-500.0,0.00013965,2]
[408863048,1774344632184,-500.0,0.00013965,2]
[408863049,1774344632194,-500.0,0.00013965,2]
[408863050,1774344632203,-500.0,0.00013965,2]
[408863051,1774344632212,-500.0,0.00013965,2]
[408863052,1774344632222,-500.0,0.00013965,2]
[408863053,1774344632231,-500.0,0.00013965,2]
[408863054,1774344632241,-500.0,0.00013965,2]
[408863055,1774344632250,-500.0,0.00013965,2]
[408863056,1774344632260,-500.0,0.00013965,2]
[408863057,1774344632269,-500.0,0.00013965,2]
[408863058,1774344632278,-500.0,0.00013965,2]
[408863059,1774344632288,-500.0,0.00013965,2]
[408863060,1774344632298,-500.0,0.00013965,2]
[408863061,1774344632308,-500.0,0.00013965,2]
[408863062,1774344632318,-500.0,0.00013965,2]
[408863063,1774344632328,-500.0,0.00013965,2]
[408863064,1774344632338,-500.0,0.00013965,2]
[408863065,1774344632348,-500.0,0.00013965,2]
[408863066,1774344632359,-500.0,0.00013965,2]
[408863067,1774344632684,-500.0,0.00013965,2]
[408863068,1774344632694,-500.0,0.00013965,2]
[408863069,1774344632703,-500.0,0.00013965,2]
[408863070,1774344632714,-500.0,0.00013965,2]
[408863071,1774344632724,-500.0,0.00013965,2]
[408863072,1774344632733,-500.0,0.00013965,2]
[408863073,1774344632742,-500.0,0.00013965,2]
[408863074,1774344632751,-500.0,0.00013965,2]
[408863075,1774344632760,-500.0,0.00013965,2]
[408863076,1774344632769,-500.0,0.00013965,2]
[408863077,1774344632778,-500.0,0.00013965,2]
[408863078,1774344632787,-515.09415399,0.00013965,2]
[408863079,1774344632797,-500.0,0.00013965,2]
[408863080,1774344632807,-500.0,0.00013965,2]
[408863081,1774344632816,-500.0,0.00013965,2]
[408863082,1774344632825,-185.35845042,0.00013965,2]
[408863083,1774344632833,-174.7,0.00013965,2]
[408863084,1774344632842,-500.0,0.00013965,2]
[408863085,1774344632852,-500.0,0.00013965,2]
[408863086,1774344632863,-500.0,0.00013965,2]
[408863087,1774344632872,-500.0,0.00013965,2]
[408863088,1774344632881,-500.0,0.00013965,2]
[408863089,1774344632890,-500.0,0.00013965,2]
[408863090,1774344632899,-522.25164134,0.00013965,2]
[408863091,1774344632908,-22346.64447527,0.00013966,2]
[408863092,1774344632920,-1306.980303,0.00013966,2]
[408863093,1774344632935,-1476346.37522173,0.00013966,2]
[408863094,1774344632945,-195.40109661,0.00013966,2]
[408863095,1774344632954,-500.0,0.00013973,2]
[408863096,1774344632963,-502.06147994,0.00013973,2]
[408863097,1774344632972,-502.43638896,0.00013973,2]
[408863098,1774344632981,-500.0,0.00013973,2]
[408863099,1774344632990,-500.0,0.00013973,2]
[408863100,1774344632999,-167.50530797,0.00013973,2]
[408863101,1774344633009,-500.0,0.00013973,2]
[408863102,1774344633018,-500.0,0.00013973,2]
[408863103,1774344633027,-500.53190228,0.00013973,2]
[408863104,1774344633037,-502.29355685,0.00013973,2]
[408863105,1774344633046,-165.89980804,0.00013973,2]
[408863106,1774344633059,-2109.16313523,0.00013973,2]
[408863107,1774344633068,-5392.91469587,0.00013973,2]
[408863108,1774344633077,-156.43,0.00014,2]
[408863109,1774344633086,-511.0,0.00014,2]
[408863110,1774344633095,-530.1897,0.00014,2]
[408863111,1774344633104,-605.3197382,0.00014056,2]
[408863112,1774344633113,-151.0,0.00014057,2]
[408863113,1774344633122,-151.0,0.00014057,2]
[408863114,1774344633133,-151.0,0.00014057,2]
[408863115,1774344633143,-151.0,0.00014057,2]
[408863116,1774344633153,-151.0,0.00014057,2]
[408863117,1774344633162,-151.0,0.00014057,2]
[408863118,1774344633171,-151.0,0.00014057,2]
[408863119,1774344633181,-151.0,0.00014057,2]
[408863120,1774344633191,-151.0,0.00014057,2]
[408863121,1774344633202,-500.0,0.00014065,2]
[408863122,1774344633212,-500.0,0.00014065,2]
[408863123,1774344633223,-500.0,0.00014065,2]
[408863124,1774344633232,-500.0,0.00014065,2]
[408863125,1774344633252,-500.0,0.00014065,2]
[408863126,1774344633263,-500.0,0.00014065,2]
[408863127,1774344633275,-231.97,0.00014065,2]
[408863128,1774344633284,-709004.04845297,0.00014066,2]
[408863129,1774344633298,-3579.0381034,0.00014066,2]
[408863130,1774344633309,-1169.01741575,0.00014066,2]
[408863134,1774344637675,-451.60599563,0.00013973,2]
[408863135,1774344637685,-1132.68254729,0.00013973,2]
[408863136,1774344637729,-932.38436881,0.00013973,2]
[408863137,1774344637738,-1750298.15542788,0.00014066,2]
[408863138,1774344637746,-500.0,0.00014073,2]
[408863139,1774344637755,-500.0,0.00014073,2]
[408863140,1774344637764,-500.0,0.00014073,2]
[408863141,1774344637773,-500.0,0.00014073,2]
[408863142,1774344637782,-500.0,0.00014073,2]
[408863143,1774344637791,-500.0,0.00014073,2]
[408863144,1774344637800,-500.0,0.00014073,2]
[408863145,1774344637809,-500.0,0.00014073,2]
[408863146,1774344637818,-501.37304645,0.00014073,2]
[408863147,1774344637828,-506.74523435,0.00014073,2]
[408863148,1774344637837,-500.0,0.00014073,2]
[408863149,1774344637846,-500.0,0.00014073,2]
[408863150,1774344637855,-500.0,0.00014073,2]
[408863151,1774344637865,-500.0,0.00014073,2]
[408863152,1774344637874,-500.0,0.00014073,2]
[408863153,1774344637883,-500.0,0.00014073,2]
[408863154,1774344637892,-500.0,0.00014073,2]
[408863155,1774344637902,-500.0,0.00014073,2]
[408863156,1774344637911,-233.67847002,0.00014073,2]
[408863157,1774344637921,-500.0,0.00014073,2]
[408863158,1774344637931,-500.0,0.00014073,2]
[408863159,1774344637942,-500.0,0.00014073,2]
[408863160,1774344637951,-500.0,0.00014073,2]
[408863161,1774344637960,-500.0,0.00014073,2]
[408863162,1774344637970,-7708.01120731,0.00014092,2]
[408863163,1774344637979,-2443.55585403,0.00014092,2]
[408863164,1774344637989,-163.55,0.000141,2]
[408863165,1774344637998,-171.5,0.000141,2]
[408863166,1774344638007,-178.69,0.000141,2]
[408863167,1774344638016,-390.19,0.000141,2]
[408863168,1774344638027,-180.38,0.000141,2]
[408863169,1774344638036,-500.0,0.00014166,2]
[408863170,1774344638046,-150.0,0.00014225,2]
[408863171,1774344638058,-500.0,0.00014225,2]
[408863172,1774344638067,-174.70037044,0.00014239,2]
[408863173,1774344638077,-250.0,0.000143,2]
[408863174,1774344638086,-7708.01120731,0.00014318,2]
[408863175,1774344638096,-2443.55585403,0.00014318,2]
[408863176,1774344638105,-5392.91469584,0.00014358,2]
[408863177,1774344638114,-500.0,0.00014521,2]
[408863178,1774344638123,-500.0,0.00014521,2]
[408863179,1774344638133,-7708.01120731,0.00014544,2]
[408863180,1774344638142,-2443.55585403,0.00014544,2]
[408863181,1774344638154,-500.0,0.00014621,2]
[408863182,1774344638163,-1000.0,0.00014621,2]
[408863183,1774344638173,-500.0,0.00014621,2]
[408863184,1774344638182,-1000.0,0.00014621,2]
[408863185,1774344638191,-500.0,0.00014621,2]
[408863186,1774344638199,-1000.0,0.00014621,2]
[408863187,1774344638209,-1000.0,0.00014621,2]
[408863188,1774344638219,-500.0,0.00014621,2]
[408863189,1774344638229,-1000.0,0.00014621,2]
[408863190,1774344638238,-500.0,0.00014621,2]
[408863191,1774344638247,-500.0,0.00014621,2]
[408863192,1774344638257,-500.0,0.00014621,2]
[408863193,1774344638267,-1000.0,0.00014621,2]
[408863194,1774344638278,-1000.0,0.00014621,2]
[408863195,1774344638288,-1000.0,0.00014621,2]
[408863196,1774344638297,-1000.0,0.00014621,2]
[408863197,1774344638306,-1076.01961876,0.00014621,2]
[408863198,1774344638316,-151.0,0.00014634,2]
[408863199,1774344638325,-5392.91469584,0.00014744,2]
[408863200,1774344638334,-7708.01120731,0.0001477,2]
[408863201,1774344638345,-2443.55585403,0.0001477,2]
[408863202,1774344638356,-500.0,0.00014781,2]
[408863203,1774344638365,-180.87,0.00014781,2]
[408863204,1774344638374,-2109.16313522,0.00014937,2]
[408863205,1774344638383,-2000.0,0.00014945,2]
[408863206,1774344638393,-255.0,0.00014988,2]
[408863207,1774344638402,-4104.85306703,0.00014996,2]
[408863208,1774344638413,-1510.31384459,0.00014996,2]
[408863209,1774344638424,-2092.84429569,0.00014996,2]
[408863210,1774344638434,-2443.55585403,0.00014996,2]
[408863211,1774344638443,-5392.91469584,0.00015129,2]
[408863212,1774344638452,-1500.0,0.00015168,2]
[408863213,1774344638461,-1500.0,0.00015168,2]
[408863214,1774344638470,-500.0,0.00015168,2]
[408863215,1774344638479,-7708.01120731,0.00015222,2]
[408863216,1774344638489,-2443.55585403,0.00015222,2]
[408863217,1774344638498,-7708.01120731,0.00015448,2]
[408863218,1774344638507,-2443.55585403,0.00015448,2]
[408863219,1774344638517,-200.0,0.000155,5]
[408863220,1774344638525,-1120.86,0.00015507,2]
[408863221,1774344638534,-5392.91469584,0.00015515,2]
[408863222,1774344638543,-200.0,0.000156,5]
[408863223,1774344638552,-7708.01120731,0.00015674,2]
[408863224,1774344638561,-894.79942375,0.00015674,2]
[408863225,1774344638572,-1548.75643028,0.00015674,2]
[408863226,1774344638582,-200.0,0.000157,5]
[408863227,1774344638590,-889.39669243,0.00015716,2]
[408863228,1774344639879,-392.70293566,0.00013866,2]
[408863229,1774344639888,-1110.60330757,0.00015716,2]
[408863230,1774344639898,-2000.0,0.00015716,2]
[408863231,1774344639907,-200.0,0.000158,5]
[408863232,1774344639916,-1120.86,0.00015895,2]
[408863233,1774344639926,-252.20178295,0.000159,2]
[408863234,1774344639935,-594.62400655,0.000159,2]
[408863235,1774344639944,-689.30010981,0.000159,2]
[408863236,1774344639953,-470.75094638,0.000159,2]
[408863237,1774344639961,-743.00052693,0.000159,2]
[408863238,1774344639971,-439.14947514,0.000159,2]
[408863239,1774344639980,-28386.9044,0.000159,2]
[408863240,1774344639989,-1000.0,0.000159,2]
[408863241,1774344639998,-205.5763,0.000159,2]
[408863242,1774344640008,-600.0,0.000159,5]
[408863243,1774344640018,-7708.01120731,0.000159,2]
[408863244,1774344640027,-165.89980803,0.000159,2]
[408863245,1774344640037,-2109.16313522,0.000159,2]
[408863246,1774344640046,-5392.91469584,0.000159,2]
[408863247,1774344640059,-2443.55585403,0.000159,2]
[408863248,1774344640068,-2193.66744163,0.000159,2]
[408863249,1774344640077,-3246.48225916,0.000159,2]
[408863250,1774344640087,-500.0,0.00015973,2]
[408863251,1774344640098,-500.0,0.00015973,2]
[408863252,1774344640107,-500.0,0.00015973,2]
[408863253,1774344640116,-547.70188919,0.00015973,2]
[408863254,1774344640127,-605.3197382,0.0001599,2]
[408863255,1774344640136,-155.0,0.00015999,2]
[408863256,1774344640145,-500.0,0.00015999,2]
[408863257,1774344640154,-500.0,0.00015999,2]
[408863258,1774344640164,-500.0,0.00015999,2]
[408863259,1774344640174,-500.0,0.00015999,2]
[408863260,1774344640185,-500.0,0.00015999,2]
[408863261,1774344640195,-500.0,0.00015999,2]
[408863262,1774344640204,-500.0,0.00015999,2]
[408863263,1774344640213,-500.0,0.00015999,2]
[408863264,1774344640222,-257.73702656,0.00015999,2]
[408863265,1774344640231,-500.0,0.00015999,2]
[408863266,1774344640240,-500.0,0.00015999,2]
[408863267,1774344640249,-464.09,0.00015999,2]
[408863268,1774344640258,-4553818.11883495,0.00016,2]
[408863269,1774344640281,-420.79212105,0.00016,2]
[408863270,1774344640292,-1188.86427304,0.00016,2]
[408863276,1774344642837,-673.3,0.00013865,2]
[408863277,1774344642883,-1000.11292556,0.00013865,2]
[408863282,1774344645651,-2921.11597168,0.00013865,2]
[408863284,1774345568419,3602.686722,7.945e-05,2]
[408863294,1774345831729,-684.77,0.00011507,2]
[408863295,1774345831739,-166.66,0.00012261,2]
[408863296,1774345831750,-166.66,0.0001252,2]
[408863297,1774345831760,-157.48,0.00012526,2]
[408863298,1774345831770,-300.0,0.00012657,2]
[408863299,1774345831780,-5000.0,0.00012658,2]
[408863300,1774345831790,-166.66,0.00012778,2]
[408863301,1774345831800,-420.79,0.00012945,2]
[408863302,1774345831810,-271.67,0.00013,2]
[408863303,1774345831820,-250.0,0.00013,2]
[408863304,1774345831830,-1200.0,0.00013035,2]
[408863306,1774345831840,-166.66,0.00013036,2]
[408863308,1774345831850,-500.0,0.00013041,2]
[408863310,1774345831860,-181.24377777,0.00013114,2]
[408863312,1774345831869,-190.0,0.00013206,2]
[408863315,1774345831879,-166.66,0.00013237,2]
[408863317,1774345831890,-166.66,0.00013294,2]
[408863318,1774345831900,-3240.0,0.00013425,2]
[408863319,1774345831910,-150.0,0.000135,2]
[408863320,1774345831923,-6498.69273183,0.000135,2]
[408863321,1774345831934,-166.66,0.00013552,2]
[408863322,1774345831946,-212908.7656701,0.00013566,2]
[408863323,1774345832101,-10645.69830936,0.00013566,2]
[408863324,1774345832124,-805.848,0.00013566,2]
[408863325,1774345832136,-471.336752,0.00013566,2]
[408863326,1774345832294,-819.1793169,0.00013566,2]
[408863327,1774345832307,-1447.89690395,0.00013566,2]
[408863328,1774345832322,-496.2484482,0.00013566,2]
[408863329,1774345832426,-2295.11887324,0.00013566,2]
[408863333,1774345837864,-500.0,0.00013565,2]
[408863334,1774345837873,-500.0,0.00013565,2]
[408863335,1774345837882,-500.0,0.00013565,2]
[408863336,1774345837891,-500.0,0.00013565,2]
[408863337,1774345837901,-75.0204456,0.00013565,2]
[408863338,1774345837912,-424.9795544,0.00013565,2]
[408863339,1774345837923,-500.0,0.00013565,2]
[408863340,1774345837932,-331.38087397,0.00013565,2]
[408863341,1774345837942,-183.7644758,0.00013565,2]
[408863342,1774345837953,-316.2355242,0.00013565,2]
[408863343,1774345837962,-500.0,0.00013565,2]
[408863344,1774345837971,-500.0,0.00013565,2]
[408863345,1774345837981,-500.0,0.00013565,2]